bitfinex/quotes_ETHUSD_20241129
["timestamp","ask_amount","ask_price","bid_price","bid_amount"]
[1732898701914,2.77454,3604.2,3604.1,0.20378446]
[1732898702753,5.77454,3604.2,3604.1,0.20378446]
[1732898702909,2.77484,3603.8,3603.7,0.82429033]
[1732898703111,2.77484,3603.8,3603.7,0.47808084]
[1732898704111,5.77484,3603.8,3603.7,0.47808084]
[1732898704311,7.29584,3603.8,3603.7,0.27429033]
[1732898705326,11.29584,3603.8,3603.7,0.27429033]
[1732898705533,11.29584,3603.8,3603.7,3.3e-07]
[1732898709352,11.41434,3603.8,3603.7,3.3e-07]
[1732898711559,7.41434,3603.8,3603.7,3.3e-07]
[1732898712543,11.41434,3603.8,3603.7,3.3e-07]
[1732898713523,2.77677,3601.3,3601.2,0.34008645]
[1732898714064,2.77677,3601.3,3601.1,1.652]
[1732898714264,2.77597,3602.4,3601.1,1.652]
[1732898714265,5.77661,3601.6,3601.2,0.20400112]
[1732898714479,2.77593,3602.4,3601.6,2.77647]
[1732898714756,2.77576,3602.7,3601.7,0.58308031]
[1732898714916,2.77507,3603.5,3601.7,0.555316]
[1732898715120,2.77507,3603.5,3601.8,4.42838]
[1732898715562,2.77592,3602.5,3602.0,0.55]
[1732898715932,3.0,3602.4,3602.0,0.55]
[1732898716138,2.77594,3602.4,3602.0,0.55]
[1732898716655,2.77594,3602.4,3602.2,0.55]
[1732898717037,2.77594,3602.4,3601.8,4.42838]
[1732898717038,2.77604,3602.3,3601.9,0.55]
[1732898717256,2.77604,3602.3,3602.1,0.55]
[1732898717769,2.77604,3602.3,3602.2,0.20395559]
[1732898717922,2.77604,3602.3,3602.2,0.75395559]
[1732898719696,2.77585,3602.5,3602.2,0.75395559]
[1732898719969,5.77592,3602.4,3602.3,0.20395559]
[1732898720565,5.77592,3602.4,3602.1,0.55]
[1732898720785,2.776,3602.3,3602.2,0.7538303]
[1732898720923,2.77631,3601.9,3601.8,1.652]
[1732898721123,2.77631,3601.9,3601.8,0.2038221]
[1732898721421,2.77656,3601.6,3601.4,1.6538]
[1732898721760,2.77656,3601.6,3601.5,0.20378069]
[1732898721967,2.7764,3601.8,3601.5,0.20378069]
[1732898722262,2.7764,3601.8,3601.6,0.20378069]
[1732898722566,2.7766,3601.6,3601.4,1.6538]
[1732898722719,2.77662,3601.5,3601.4,2.2038]
[1732898722922,2.7766,3601.6,3601.4,2.2038]
[1732898723555,2.77658,3601.6,3601.4,2.2038]
[1732898723893,2.77662,3601.5,3601.4,2.2038]
[1732898724200,2.77686,3601.2,3600.8,1.639]
[1732898724400,2.77686,3601.2,3600.9,0.20357549]
[1732898724556,2.77686,3601.2,3601.0,0.20357549]
[1732898724757,2.77686,3601.2,3600.8,1.8029]
[1732898724983,2.77686,3601.2,3600.9,0.20359034]
[1732898725288,2.77686,3601.2,3600.9,0.55]
[1732898725792,2.7767,3601.4,3600.8,1.8029]
[1732898725793,2.777,3601.0,3600.8,1.639]
[1732898725973,3.0,3601.3,3600.8,1.639]
[1732898726292,4.42217,3601.5,3600.8,1.639]
[1732898726293,2.77708,3600.9,3600.8,1.639]
[1732898727068,2.77631,3601.9,3600.8,1.639]
[1732898727069,2.77683,3601.3,3600.8,1.639]
[1732898727262,2.77687,3601.2,3601.1,0.55]
[1732898728986,2.77692,3601.1,3601.0,5.0]
[1732898729189,5.77692,3601.1,3601.0,5.0]
[1732898729494,7.42792,3601.1,3601.0,5.0]
[1732898729711,3.0,3601.1,3601.0,5.0]
[1732898729875,5.77692,3601.1,3601.0,5.0]
[1732898730771,7.38932,3601.1,3601.0,5.0]
[1732898730992,2.77666,3601.5,3600.0,5.0]
[1732898730993,5.7777,3600.1,3600.0,5.0]
[1732898732814,5.7777,3600.1,3600.0,5.55]
[1732898733116,5.7777,3600.1,3600.0,5.0]
[1732898736619,3.0,3600.2,3600.0,7.1891]
[1732898736822,5.7777,3600.1,3600.0,7.1891]
[1732898737121,3.0,3600.1,3600.0,7.1891]
[1732898737282,2.7777,3600.1,3600.0,7.1891]
[1732898737483,5.7777,3600.1,3600.0,7.1891]
[1732898738621,7.4289,3600.1,3600.0,5.0]
[1732898740920,5.7777,3600.1,3600.0,5.0]
[1732898741220,3.0,3600.2,3600.0,5.0]
[1732898741435,3.0,3600.3,3600.1,0.55]
[1732898741635,1.5472,3601.9,3600.1,0.55]
[1732898741780,1.5472,3601.9,3600.9,2.77702]
[1732898741991,1.5472,3601.9,3600.8,0.57777059]
[1732898742287,2.77638,3601.8,3600.7,0.55]
[1732898742612,2.77708,3600.9,3600.7,0.55]
[1732898742929,2.7769,3601.2,3600.7,0.55]
[1732898743132,5.77702,3601.0,3600.7,0.7658]
[1732898743437,3.0,3601.8,3600.7,0.55]
[1732898743734,3.0,3601.1,3600.7,0.55]
[1732898744835,5.77682,3601.3,3600.7,0.55]
[1732898745198,2.77687,3601.2,3600.7,0.55]
[1732898745500,3.0,3601.1,3600.7,1.043535]
[1732898746212,4.32355,3601.9,3600.7,1.043535]
[1732898746213,5.77682,3601.3,3600.7,1.043535]
[1732898746414,3.0,3601.4,3600.7,1.043535]
[1732898746625,4.32355,3601.9,3600.9,2.77703]
[1732898746626,3.0,3601.2,3600.9,2.77703]
[1732898746824,2.77628,3602.0,3600.9,0.55]
[1732898746994,2.77628,3602.0,3601.3,0.55]
[1732898748034,2.77637,3601.9,3601.3,0.55]
[1732898748331,2.77617,3602.1,3601.3,0.55]
[1732898748497,2.77561,3602.8,3601.7,0.55]
[1732898748692,2.77584,3602.6,3601.7,3.32645]
[1732898748919,2.77569,3602.7,3601.7,4.096396]
[1732898749113,2.77561,3602.8,3601.7,4.096396]
[1732898749494,2.77582,3602.6,3601.7,4.096396]
[1732898749837,2.77593,3602.4,3601.7,1.319946]
[1732898750137,2.77581,3602.6,3601.7,4.096406]
[1732898750335,3.0,3602.5,3601.9,0.55]
[1732898750494,3.0,3602.6,3601.9,0.55]
[1732898750703,2.77557,3602.9,3602.1,3.32615]
[1732898751198,2.77557,3602.9,3602.1,0.55]
[1732898751497,2.7754,3603.1,3602.1,0.55]
[1732898751701,2.7754,3603.1,3602.3,0.55]
[1732898751924,3.0,3602.9,3602.3,0.55]
[1732898752241,3.0,3603.2,3602.3,0.55]
[1732898752435,1.6277,3603.3,3602.3,0.55]
[1732898752643,4.38019,3603.9,3602.7,3.32569]
[1732898752842,2.775,3603.6,3602.9,0.55]
[1732898753002,2.77507,3603.6,3602.9,0.55]
[1732898753327,2.77507,3603.6,3602.8,0.55]
[1732898753542,2.77486,3603.8,3602.9,2.77553]
[1732898753746,2.77486,3603.8,3603.2,0.55]
[1732898753923,2.77498,3603.7,3603.2,1.045953]
[1732898754255,2.77498,3603.7,3603.2,0.55]
[1732898754612,2.77507,3603.6,3603.2,0.55]
[1732898754814,2.77489,3603.8,3603.2,0.55]
[1732898755056,3.0,3603.7,3603.2,0.55]
[1732898755272,5.77472,3604.0,3603.2,0.55]
[1732898755574,3.0,3604.0,3603.4,0.55]
[1732898755851,5.77469,3604.0,3603.4,0.55]
[1732898756440,3.0,3604.1,3603.4,0.55]
[1732898756638,3.0,3603.7,3603.4,0.55]
[1732898756957,5.77495,3603.7,3603.4,0.55]
[1732898757459,1.5232,3604.7,3603.2,0.55]
[1732898757660,2.77501,3603.6,3603.2,0.55]
[1732898757811,5.77496,3603.7,3603.2,0.55]
[1732898758011,5.77496,3603.7,3603.2,1.045952]
[1732898758246,3.0,3603.8,3603.2,1.045952]
[1732898758447,5.77488,3603.8,3603.2,1.045952]
[1732898758753,5.77468,3604.1,3603.4,2.77513]
[1732898758911,3.0,3603.9,3603.5,0.55]
[1732898759111,1.5232,3604.7,3603.5,0.55]
[1732898759112,3.0,3604.0,3603.5,0.55]
[1732898759360,3.0,3603.7,3603.5,0.55]
[1732898760417,2.775,3603.6,3603.5,0.55]
[1732898760619,2.77508,3603.5,3603.2,0.55]
[1732898760913,3.0,3603.6,3603.2,0.76233]
[1732898761144,3.0,3603.7,3603.2,0.76233]
[1732898761339,5.7748,3603.9,3603.4,0.55]
[1732898761566,2.77486,3603.8,3603.4,0.55]
[1732898761875,2.77497,3603.7,3603.4,0.55]
[1732898762579,2.77501,3603.6,3603.4,0.55]
[1732898762777,5.7745,3604.3,3603.3,1.5377]
[1732898762778,2.77507,3603.5,3603.3,1.5377]
[1732898762941,2.77546,3603.0,3602.2,1.5377]
[1732898763144,2.77562,3602.8,3602.2,4.31375]
[1732898763583,3.0,3603.3,3602.2,1.5377]
[1732898763796,2.77556,3602.9,3602.2,4.3137]
[1732898763945,2.77531,3603.2,3602.6,2.77576]
[1732898764144,2.77546,3603.0,3602.3,3.20731]
[1732898764343,3.0,3603.7,3602.3,0.43137]
[1732898764592,2.77507,3603.5,3602.3,0.43137]
[1732898764812,2.7756,3602.9,3602.3,0.43137]
[1732898764948,2.7754,3603.1,3602.4,0.474513]
[1732898765142,2.7754,3603.1,3602.6,0.55]
[1732898765348,2.77549,3603.0,3602.5,0.55]
[1732898765571,5.77492,3603.7,3602.5,0.55]
[1732898765770,2.77547,3603.0,3602.5,0.55]
[1732898765974,2.77561,3602.9,3602.5,1.3614193]
[1732898766145,1.572,3602.9,3602.2,1.5377]
[1732898766346,3.0,3602.6,3601.3,1.5247]
[1732898766661,2.77643,3601.8,3601.3,1.5247]
[1732898767349,2.77669,3601.4,3601.3,1.5247]
[1732898767654,2.77669,3601.4,3601.0,1.84745066]
[1732898768081,2.77677,3601.3,3601.0,1.5884]
[1732898768466,2.7767,3601.4,3601.0,1.5884]
[1732898769310,2.77686,3601.2,3601.0,1.5884]
[1732898769482,2.77686,3601.2,3601.1,0.55]
[1732898770604,2.7767,3601.4,3601.1,0.55]
[1732898770765,2.77678,3601.3,3601.1,0.55]
[1732898770972,3.0,3601.7,3600.6,1.5334]
[1732898770973,2.77712,3600.9,3600.6,1.5334]
[1732898771224,2.77699,3601.1,3600.6,1.5334]
[1732898771366,2.77701,3601.0,3600.6,1.5334]
[1732898771872,2.77723,3600.7,3600.6,1.5334]
[1732898772073,4.6348,3601.3,3600.1,1.5334]
[1732898772074,2.77732,3600.6,3600.1,1.5334]
[1732898772359,2.77732,3600.6,3600.2,0.931112]
[1732898772360,2.77745,3600.5,3600.2,0.931112]
[1732898772496,2.77727,3600.7,3600.2,0.931112]
[1732898773596,2.77739,3600.5,3600.3,0.55]
[1732898773792,2.77721,3600.8,3600.3,0.55]
[1732898774410,2.77746,3600.4,3600.1,1.5334]
[1732898774585,2.7777,3600.1,3600.0,5.0]
[1732898774985,2.77764,3600.2,3600.0,5.0]
[1732898775296,2.7777,3600.1,3600.0,5.0]
[1732898775872,2.7777,3600.1,3600.0,5.55]
[1732898780524,3.0,3600.8,3600.1,0.55]
[1732898780730,3.0,3600.6,3600.3,0.55]
[1732898781026,2.77709,3600.9,3600.3,0.55]
[1732898781027,3.0,3600.8,3600.3,0.55]
[1732898781519,5.77718,3600.8,3600.3,0.55]
[1732898782194,5.77718,3600.8,3600.5,0.55]
[1732898782400,5.77718,3600.8,3600.3,0.55]
[1732898782582,5.77718,3600.8,3600.3,1.819866]
[1732898782786,2.77675,3601.4,3600.5,2.77739]
[1732898783018,2.77663,3601.5,3600.9,0.55]
[1732898783323,2.77685,3601.2,3601.1,0.55]
[1732898783656,2.77729,3600.7,3600.6,0.55]
[1732898784584,2.77653,3601.7,3600.6,0.55]
[1732898784790,1.6563,3602.5,3601.0,0.55]
[1732898785017,2.77649,3601.7,3601.0,0.76533]
[1732898785213,2.77592,3602.4,3601.1,1.5928]
[1732898785525,2.77634,3601.9,3601.2,0.55]
[1732898785826,2.77632,3601.9,3601.4,0.55]
[1732898785986,2.77617,3602.1,3601.5,0.55]
[1732898786189,2.77613,3602.2,3601.5,1.374633]
[1732898786392,2.7751,3603.5,3601.6,0.02776434]
[1732898786393,1.6003,3602.8,3601.6,0.02776434]
[1732898786627,1.6003,3602.8,3601.5,0.55]
[1732898786831,2.77606,3602.3,3601.5,3.32661]
[1732898786987,2.77606,3602.3,3601.7,0.55]
[1732898787192,2.77586,3602.5,3601.7,0.55]
[1732898787435,2.77586,3602.5,3601.5,0.55]
[1732898787618,2.77606,3602.3,3601.7,0.55]
[1732898787825,2.7761,3602.2,3601.7,0.55]
[1732898788097,2.77616,3602.1,3601.7,0.55]
[1732898788441,3.0,3602.5,3601.7,3.32645]
[1732898788609,5.77585,3602.5,3601.9,0.55]
[1732898788941,2.77614,3602.2,3601.7,0.55]
[1732898789105,2.77621,3602.1,3601.7,0.55]
[1732898789310,2.77621,3602.1,3601.6,0.491951]
[1732898789311,2.77631,3601.9,3601.5,0.55]
[1732898789624,2.77621,3602.1,3601.5,0.55]
[1732898789827,3.0,3602.2,3601.7,0.55]
[1732898790035,2.77615,3602.1,3601.5,1.041955]
[1732898790187,5.77603,3602.3,3601.5,3.818565]
[1732898790392,5.77603,3602.3,3601.7,0.55]
[1732898790593,3.0,3602.3,3601.7,0.55]
[1732898791129,2.77626,3602.0,3601.5,0.55]
[1732898791290,2.7765,3601.7,3601.4,1.5928]
[1732898791496,2.77627,3602.0,3601.4,1.5928]
[1732898791693,2.77642,3601.8,3601.4,1.5928]
[1732898791906,4.32307,3602.4,3601.5,2.7766]
[1732898791907,3.0,3602.2,3601.5,2.7766]
[1732898792232,3.0,3602.2,3601.5,3.06050977]
[1732898792416,1.565,3602.8,3601.6,1.5499]
[1732898792593,2.77601,3602.3,3601.7,0.55]
[1732898792801,2.77609,3602.2,3601.7,0.55]
[1732898793331,2.77638,3601.8,3601.7,0.55]
[1732898793707,2.77585,3602.5,3601.7,0.55]
[1732898793708,2.77632,3601.9,3601.7,0.55]
[1732898793924,3.0,3602.4,3601.7,0.55]
[1732898794131,2.77638,3601.8,3601.7,0.55]
[1732898795936,2.77628,3602.0,3600.8,2.77715]
[1732898795937,2.77672,3601.4,3600.8,4.39505]
[1732898796137,1.6462,3601.3,3600.3,1.6179]
[1732898796297,2.77724,3600.7,3600.3,1.6179]
[1732898796493,2.77742,3600.5,3600.3,1.6179]
[1732898796698,5.55488,3600.5,3600.0,5.0]
[1732898796944,2.77725,3600.7,3600.0,5.0]
[1732898797122,2.7774,3600.5,3600.0,5.0]
[1732898797464,2.7777,3600.1,3600.0,5.0]
[1732898798527,2.77763,3600.2,3600.0,5.0]
[1732898799043,2.77755,3600.3,3600.1,0.55]
[1732898799756,3.0,3600.3,3600.1,0.55]
[1732898800052,2.77755,3600.3,3600.1,0.55]
[1732898800546,2.77762,3600.2,3600.1,0.55]
[1732898800753,2.7777,3600.1,3600.0,5.0]
[1732898801538,5.7777,3600.1,3600.0,5.0]
[1732898802138,7.4161,3600.1,3600.0,5.0]
[1732898803794,5.7777,3600.1,3600.0,5.0]
[1732898808048,9.7777,3600.1,3600.0,5.0]
[1732898809577,5.7777,3600.1,3600.0,5.0]
[1732898809982,5.7777,3600.1,3600.0,5.55]
[1732898810889,1.5882,3600.7,3600.1,0.55]
[1732898811088,2.77747,3600.4,3600.1,0.55]
[1732898811616,2.77762,3600.2,3600.1,0.55]
[1732898813207,3.0,3600.5,3600.3,0.55]
[1732898813424,2.77709,3600.9,3600.3,3.32749]
[1732898813727,2.77708,3600.9,3600.3,3.32749]
[1732898813919,2.77708,3600.9,3600.4,0.772837]
[1732898814075,2.77716,3600.8,3600.5,0.55]
[1732898814277,2.77724,3600.7,3600.3,0.55]
[1732898814518,2.77702,3601.0,3600.3,0.55]
[1732898814812,2.77721,3600.8,3600.3,0.55]
[1732898815117,2.77721,3600.8,3600.5,0.55]
[1732898815609,2.77702,3601.0,3600.5,0.55]
[1732898815820,3.0,3601.1,3600.7,0.55]
[1732898815995,2.77685,3601.2,3600.9,0.55]
[1732898816382,2.77679,3601.3,3600.9,0.55]
[1732898816604,2.77687,3601.2,3600.9,0.55]
[1732898817560,2.77693,3601.1,3600.9,0.55]
[1732898818669,2.77693,3601.1,3600.3,2.77753]
[1732898818670,1.63,3601.3,3599.8,2.77791]
[1732898818878,2.7777,3600.1,3599.0,5.0]
[1732898819025,7.4077,3600.1,3599.0,5.0]
[1732898820232,11.4077,3600.1,3599.0,5.0]
[1732898822877,6.7777,3600.1,3600.0,5.55]
[1732898823592,2.7777,3600.1,3600.0,5.55]
[1732898823740,3.90727,3599.1,3599.0,5.0]
[1732898823941,3.90727,3599.1,3599.0,0.83219]
[1732898824283,3.90727,3599.1,3598.0,5.1560895]
[1732898824284,2.77924,3598.1,3598.0,5.1560895]
[1732898824500,6.90804,3598.1,3598.0,5.1560895]
[1732898825016,7.16355944,3598.1,3598.0,5.1560895]
[1732898825281,11.16355944,3598.1,3598.0,5.1560895]
[1732898825947,10.90804,3598.1,3598.0,5.1560895]
[1732898827243,9.77924,3598.1,3598.0,5.1560895]
[1732898830485,7.0,3598.1,3598.0,5.1560895]
[1732898830779,7.0,3598.1,3598.0,5.7060895]
[1732898830976,2.77892,3598.6,3598.0,5.7060895]
[1732898831181,2.77878,3598.7,3598.1,0.55]
[1732898831367,4.0,3598.2,3598.1,0.55]
[1732898831568,4.0,3598.2,3598.1,4.33665295]
[1732898831773,2.7784,3599.2,3598.5,2.77893]
[1732898831944,2.77817,3599.5,3598.8,0.55]
[1732898832153,2.77785,3599.9,3598.8,0.55]
[1732898832480,4.0,3598.9,3598.8,0.55]
[1732898832692,2.77825,3599.4,3598.8,0.55]
[1732898832693,2.77825,3599.4,3598.8,1.044041]
[1732898832921,2.77813,3599.6,3598.8,1.044041]
[1732898833061,1.6219,3600.0,3598.8,1.044041]
[1732898833417,2.77804,3599.7,3598.8,1.044041]
[1732898833561,1.6219,3600.0,3599.0,3.32854]
[1732898833758,4.39971,3600.0,3599.0,3.32854]
[1732898833973,2.77801,3599.7,3599.0,3.32854]
[1732898834277,2.77808,3599.6,3599.0,0.55]
[1732898835105,3.0,3599.5,3599.0,0.55]
[1732898835266,3.0,3599.5,3599.0,1.37624191]
[1732898835605,3.0,3599.5,3599.0,4.15478191]
[1732898835763,2.77774,3600.1,3599.1,4.39187]
[1732898835963,2.77774,3600.1,3599.4,2.77822]
[1732898836180,2.77779,3600.0,3599.5,0.55]
[1732898836658,2.77764,3600.2,3599.5,0.882822]
[1732898836887,4.32145,3600.9,3599.8,0.55]
[1732898836888,2.77756,3600.3,3599.8,0.55]
[1732898837094,2.77756,3600.3,3600.0,0.55]
[1732898837301,2.77756,3600.3,3599.8,0.55]
[1732898837904,2.77756,3600.3,3599.9,1.6416]
[1732898838212,1.5443,3600.9,3600.0,0.55]
[1732898838382,2.77699,3601.1,3600.4,0.55]
[1732898838581,2.77699,3601.1,3600.3,2.77753]
[1732898838582,2.77723,3600.8,3600.1,2.77764]
[1732898838785,2.77723,3600.8,3600.2,0.55]
[1732898839129,2.77702,3601.0,3600.2,0.55]
[1732898839130,2.77725,3600.7,3600.2,0.55]
[1732898839302,2.77725,3600.7,3600.2,1.374403]
[1732898839629,2.77763,3600.2,3600.0,0.55]
[1732898839910,2.77763,3600.2,3599.5,1.5841]
[1732898839911,2.7777,3600.1,3599.5,1.5841]
[1732898840129,2.77847,3599.1,3599.0,1.5841]
[1732898840280,2.77847,3599.1,3598.4,2.779]
[1732898840281,2.77847,3599.1,3598.5,1.5841]
[1732898840484,2.7784,3599.2,3598.5,5.077245]
[1732898840720,2.7784,3599.2,3598.5,2.298325]
[1732898840919,2.77824,3599.4,3598.5,2.298325]
[1732898841076,2.77824,3599.4,3598.7,2.77877]
[1732898841536,2.77833,3599.3,3598.7,2.77877]
[1732898841701,2.77833,3599.3,3598.7,3.5643785]
[1732898841879,2.77833,3599.3,3598.8,0.55]
[1732898843224,2.918,3601.4,3598.7,3.5643785]
[1732898843225,2.77739,3600.5,3600.0,1.5913]
[1732898843384,2.77739,3600.5,3600.1,0.55]
[1732898843580,1.6327,3601.0,3600.1,0.55]
[1732898843581,2.77701,3601.0,3600.1,0.55]
[1732898843915,2.77701,3601.0,3600.1,3.32764]
[1732898843916,2.77718,3600.8,3600.1,3.32764]
[1732898844114,5.5537,3601.2,3600.1,0.55]
[1732898844425,2.77677,3601.3,3600.1,0.55]
[1732898844426,2.7773,3600.7,3600.1,0.55]
[1732898844719,2.77716,3600.8,3600.1,3.70441348]
[1732898844932,2.77716,3600.8,3600.2,2.77761]
[1732898845133,3.0,3600.7,3600.3,0.55]
[1732898845430,2.77732,3600.6,3600.3,0.55]
[1732898845884,2.77732,3600.6,3600.2,0.55]
[1732898846229,2.77732,3600.6,3600.1,0.55]
[1732898846424,3.0,3600.7,3600.1,0.55]
[1732898846598,3.0,3600.7,3600.1,3.32766]
[1732898846795,5.77724,3600.7,3600.3,0.55]
[1732898847018,3.0,3600.8,3600.3,0.55]
[1732898847333,2.77732,3600.6,3600.3,0.55]
[1732898847943,2.77732,3600.6,3600.1,0.55]
[1732898848312,2.7778,3600.0,3599.6,1.5309]
[1732898848502,2.77808,3599.7,3598.7,2.77876]
[1732898848701,1.5241,3600.2,3598.8,0.81079714]
[1732898848916,2.77792,3599.9,3599.1,2.7784]
[1732898849114,3.0,3600.0,3598.9,2.77862]
[1732898849353,2.77808,3599.6,3599.0,2.7785]
[1732898849667,2.77778,3600.0,3598.9,1.6111]
[1732898849827,5.77761,3600.3,3599.5,0.55]
[1732898850012,3.0,3600.1,3599.7,0.55]
[1732898850417,3.0,3600.0,3599.7,0.55]
[1732898851235,2.77779,3600.0,3599.7,0.55]
[1732898851434,2.77786,3599.9,3599.7,0.55]
[1732898851632,2.77793,3599.8,3599.7,0.55]
[1732898852258,2.77814,3599.6,3599.2,1.5649]
[1732898852427,2.77815,3599.6,3599.3,0.55]
[1732898852862,2.77817,3599.5,3599.3,0.55]
[1732898853181,2.77817,3599.5,3598.9,2.77861]
[1732898853182,1.6046,3599.9,3598.9,1.6028]
[1732898853322,2.77832,3599.3,3598.9,1.6028]
[1732898854155,2.77817,3599.5,3598.9,1.6028]
[1732898854156,2.7784,3599.2,3598.9,1.6028]
[1732898854368,2.77843,3599.2,3598.9,1.6028]
[1732898854860,2.77843,3599.2,3599.0,0.55]
[1732898855046,2.77847,3599.1,3599.0,0.55]
[1732898855435,2.77826,3599.4,3599.0,0.55]
[1732898855649,2.77838,3599.3,3599.0,0.55]
[1732898855852,2.77841,3599.2,3599.0,0.55]
[1732898856185,2.77847,3599.1,3599.0,0.55]
[1732898856542,2.77878,3598.7,3598.6,1.5614]
[1732898856753,2.77886,3598.6,3598.1,1.5614]
[1732898857049,2.77886,3598.6,3598.1,2.78902095]
[1732898857728,2.77879,3598.7,3598.1,5.56824095]
[1732898857927,3.0,3599.1,3598.2,0.55]
[1732898858240,2.77883,3598.7,3598.2,0.55]
[1732898858775,2.77862,3598.9,3598.2,3.32916]
[1732898858976,2.77862,3598.9,3598.4,0.55]
[1732898859271,2.7785,3599.1,3598.4,0.55]
[1732898859272,3.0,3599.0,3598.4,3.32894]
[1732898859480,3.0,3599.0,3598.6,0.55]
[1732898859970,3.0,3599.4,3598.8,3.3287]
[1732898860183,2.77816,3599.5,3598.9,2.77861]
[1732898860330,2.77785,3599.9,3599.1,1.6325]
[1732898860673,2.77795,3599.8,3599.2,3.32833]
[1732898861341,2.77731,3600.6,3599.2,0.55]
[1732898861544,2.77815,3599.6,3599.2,0.55]
[1732898862949,2.77794,3599.8,3599.2,0.55]
[1732898863283,2.77802,3599.7,3599.4,0.55]
[1732898863650,2.77789,3599.9,3599.4,0.55]
[1732898863846,3.0,3600.0,3599.4,3.32819]
[1732898864047,2.77755,3600.3,3599.8,0.55]
[1732898864249,2.77732,3600.6,3600.0,0.55]
[1732898864452,2.77767,3600.2,3600.0,0.55]
[1732898864767,2.7777,3600.1,3599.8,0.55]
[1732898864948,2.77778,3600.0,3599.8,0.55]
[1732898865155,2.77772,3600.1,3599.8,0.55]
[1732898865353,2.77764,3600.2,3599.8,0.55]
[1732898865567,2.77778,3600.0,3599.8,0.55]
[1732898865766,2.77777,3600.1,3599.8,0.55]
[1732898865973,2.77764,3600.2,3599.8,0.55]
[1732898866758,2.77732,3600.6,3599.8,4.091901]
[1732898867057,1.579,3601.0,3600.5,0.55]
[1732898867058,2.77717,3600.8,3600.5,0.55]
[1732898867253,2.77686,3601.2,3600.5,0.55]
[1732898867675,2.77651,3601.7,3600.5,0.55]
[1732898867978,2.77731,3600.6,3600.5,0.55]
[1732898868856,3.0,3600.6,3600.5,0.55]
[1732898869066,2.77683,3601.3,3600.6,2.7773]
[1732898869369,3.0,3601.2,3600.7,0.55]
[1732898869553,3.0,3601.5,3600.6,0.55]
[1732898869757,2.77746,3600.5,3599.5,2.77815]
[1732898869980,2.77735,3600.6,3600.0,1.5391]
[1732898870468,1.5159,3601.0,3600.0,1.5391]
[1732898870469,2.77717,3600.8,3600.0,4.68403003]
[1732898870679,2.77736,3600.6,3600.0,1.90627003]
[1732898871349,2.77769,3600.2,3600.0,1.5391]
[1732898872096,2.7777,3600.1,3600.0,1.5391]
[1732898872386,2.77787,3599.9,3599.5,1.5663]
[1732898872691,2.77806,3599.7,3599.5,1.5663]
[1732898872985,2.7778,3600.0,3599.5,1.5663]
[1732898873209,2.77736,3600.6,3599.5,2.27859]
[1732898873347,3.0,3600.4,3599.8,2.77787]
[1732898873549,2.77752,3600.4,3599.6,2.77807]
[1732898873745,2.77752,3600.4,3599.7,0.55]
[1732898873986,2.77787,3599.9,3599.7,0.55]
[1732898874195,2.77777,3600.1,3599.6,0.55]
[1732898874485,3.0,3600.7,3599.6,0.55]
[1732898874486,2.77793,3599.8,3599.6,0.55]
[1732898874649,3.0,3600.7,3599.6,0.55]
[1732898874849,2.77788,3599.9,3599.6,0.55]
[1732898875284,2.77793,3599.8,3599.6,0.55]
[1732898875498,2.77788,3599.9,3599.6,0.55]
[1732898876152,2.77762,3600.2,3599.0,1.5997]
[1732898876492,2.77815,3599.6,3599.1,0.15954286]
[1732898876690,2.77825,3599.4,3599.0,1.5997]
[1732898876891,2.77822,3599.5,3599.1,0.15954621]
[1732898877199,5.55608,3599.7,3599.0,1.5997]
[1732898877355,2.77809,3599.6,3599.1,0.70956235]
[1732898877686,2.77786,3599.9,3599.2,0.15955616]
[1732898877888,2.77789,3599.9,3599.3,0.55]
[1732898878090,1.5681,3600.3,3599.3,0.55]
[1732898878287,2.77813,3599.6,3599.1,0.55]
[1732898878488,2.77813,3599.6,3599.1,1.3922616]
[1732898878689,2.77795,3599.8,3599.1,4.1707216]
[1732898878853,2.77795,3599.8,3599.3,0.55]
[1732898880601,2.77772,3600.1,3599.5,0.55]
[1732898880751,2.77781,3600.0,3599.6,0.15954016]
[1732898881094,2.77794,3599.8,3599.5,0.55]
[1732898881461,2.77781,3600.0,3599.5,0.55]
[1732898881803,2.77808,3599.6,3599.5,0.55]
[1732898882302,2.77847,3599.1,3598.5,1.5638]
[1732898882507,2.77847,3599.1,3598.6,0.84915275]
[1732898882660,2.7784,3599.2,3598.7,0.15956184]
[1732898882865,2.77854,3599.1,3598.5,1.5638]
[1732898883119,2.7784,3599.2,3598.6,0.15958883]
[1732898883273,2.77824,3599.4,3598.5,1.5638]
[1732898883611,2.77824,3599.4,3598.6,2.93842229]
[1732898883758,2.77809,3599.6,3598.7,3.2866981]
[1732898884100,2.77836,3599.3,3598.8,1.72387662]
[1732898884264,2.77853,3599.1,3598.8,1.5643]
[1732898884597,2.77851,3599.1,3598.9,0.55]